bitfinex/quotes_SOLUSD_20250416
["timestamp","ask_amount","ask_price","bid_price","bid_amount"]
[1744818515302,34.76054933,128.6,128.59,0.063]
[1744818516622,42.53659909,128.6,128.59,0.063]
[1744818517620,34.76054933,128.6,128.59,0.063]
[1744818518521,34.76054933,128.61,128.59,0.063]
[1744818519114,7.77530804,128.62,128.59,0.063]
[1744818519316,21.77345393,128.61,128.59,0.063]
[1744818519522,29.54729835,128.64,128.59,21.83645393]
[1744818519904,7.77384442,128.64,128.59,21.83645393]
[1744818520099,21.77345393,128.62,128.59,0.063]
[1744818521095,7.77423618,128.63,128.59,0.063]
[1744818521303,42.6013831,128.63,128.59,0.063]
[1744818522028,45.43362139,128.65,128.59,34.89014692]
[1744818522029,42.60089325,128.64,128.59,34.89014692]
[1744818522701,34.82714692,128.62,128.59,0.063]
[1744818524422,42.60212259,128.62,128.59,0.063]
[1744818524610,34.82714692,128.62,128.59,0.063]
[1744818525021,42.60167429,128.63,128.59,34.89014692]
[1744818525218,34.82714692,128.64,128.6,34.82714692]
[1744818525527,60.82714692,128.65,128.61,13.46]
[1744818525825,34.82714692,128.64,128.61,13.46]
[1744818526209,60.82714692,128.65,128.61,48.28714692]
[1744818526410,68.60028818,128.65,128.61,48.28714692]
[1744818526611,68.60028818,128.65,128.61,13.46]
[1744818527634,68.60028818,128.65,128.61,56.06257596]
[1744818528813,68.60028818,128.65,128.61,48.28714692]
[1744818529014,34.82714692,128.63,128.61,13.46]
[1744818529213,34.82714692,128.65,128.61,13.46]
[1744818529428,42.59864109,128.68,128.64,0.14216157]
[1744818529627,3.0755,128.7,128.65,34.82714692]
[1744818529952,34.82714692,128.66,128.61,65.66735896]
[1744818530111,34.82714692,128.66,128.62,0.14216157]
[1744818530514,34.82714692,128.64,128.61,13.46]
[1744818531421,34.82714692,128.65,128.61,21.23536297]
[1744818531621,34.82714692,128.65,128.61,13.46]
[1744818532617,7.77363184,128.64,128.61,13.46]
[1744818533126,42.60045783,128.65,128.61,13.46]
[1744818533334,34.82714692,128.62,128.61,13.46]
[1744818533847,26.0,128.6,128.59,0.063]
[1744818534015,60.82714692,128.6,128.59,0.063]
[1744818534628,68.60319668,128.6,128.59,0.063]
[1744818535530,60.82714692,128.6,128.59,0.063]
[1744818535710,42.60259529,128.61,128.59,0.063]
[1744818536121,34.82714692,128.6,128.59,0.063]
[1744818536635,42.60319668,128.6,128.59,0.063]
[1744818537535,68.60319668,128.6,128.59,0.063]
[1744818541231,55.56135108,128.6,128.59,0.063]
[1744818545313,27.21077747,128.63,128.59,0.063]
[1744818545535,21.78530132,128.61,128.59,0.063]
[1744818545735,47.78530132,128.61,128.59,0.063]
[1744818546236,21.78530132,128.6,128.59,0.063]
[1744818546437,21.78530132,128.62,128.59,0.063]
[1744818546829,29.5595375,128.63,128.59,21.84830132]
[1744818547156,21.78530132,128.63,128.59,21.84830132]
[1744818547450,21.78530132,128.61,128.59,0.063]
[1744818547624,21.78530132,128.6,128.59,0.063]
[1744818549518,29.56135108,128.6,128.59,0.063]
[1744818554636,26.0,128.57,128.55,0.063]
[1744818554840,21.78530132,128.56,128.55,0.063]
[1744818555559,21.78530132,128.56,128.54,0.063]
[1744818555865,55.56437561,128.55,128.54,0.063]
[1744818559542,55.56437561,128.55,128.53,0.063]
[1744818559857,21.78530132,128.54,128.53,0.063]
[1744818560043,29.56498079,128.54,128.53,0.063]
[1744818561731,48.21462965,128.54,128.53,0.063]
[1744818561940,48.21462965,128.54,128.52,0.063]
[1744818562240,29.56558607,128.53,128.52,0.063]
[1744818563767,7.78028475,128.53,128.52,0.063]
[1744818564068,29.56558607,128.53,128.52,0.063]
[1744818566265,26.0,128.55,128.52,0.063]
[1744818566470,21.78530132,128.58,128.54,21.78530132]
[1744818566765,47.78530132,128.58,128.54,21.78530132]
[1744818566966,47.78530132,128.58,128.53,21.78530132]
[1744818567172,21.78530132,128.57,128.52,21.84830132]
[1744818567670,21.78530132,128.55,128.52,0.063]
[1744818567965,21.78530132,128.54,128.52,0.063]
[1744818568346,7.78004852,128.54,128.52,0.063]
[1744818568859,29.56534984,128.54,128.52,0.063]
[1744818569062,21.78530132,128.53,128.52,0.063]
[1744818570047,43.57060264,128.53,128.52,0.063]
[1744818570247,29.56558607,128.53,128.52,0.063]
[1744818571161,70.00053625,128.53,128.52,1e-08]
[1744818572162,29.56558607,128.53,128.52,1e-08]
[1744818573255,70.00053625,128.53,128.52,1e-08]
[1744818573656,29.56558607,128.53,128.52,1e-08]
[1744818576152,26.0,128.5,128.48,0.063]
[1744818576375,55.56800814,128.49,128.48,0.063]
[1744818578173,48.217657,128.49,128.48,0.063]
[1744818579180,26.0,128.47,128.46,0.063]
[1744818579378,88.36241307,128.47,128.46,1e-08]
[1744818580180,18.64964886,128.46,128.44,2.7499694]
[1744818580471,47.78530132,128.45,128.44,2.7499694]
[1744818581454,55.57043172,128.45,128.44,2.7499694]
[1744818583266,21.78530132,128.46,128.44,16.1499694]
[1744818583469,29.57030069,128.46,128.44,16.1499694]
[1744818583776,21.78530132,128.45,128.44,16.1499694]
[1744818584877,21.78530132,128.45,128.44,2.7499694]
[1744818585356,29.57043172,128.45,128.44,2.7499694]
[1744818586075,48.22008058,128.45,128.44,2.7499694]
[1744818586575,18.64964886,128.44,128.43,0.063]
[1744818586775,40.43495018,128.44,128.43,0.063]
[1744818587071,21.78530132,128.44,128.43,0.063]
[1744818587278,47.78530132,128.44,128.43,0.063]
[1744818587771,48.22068671,128.44,128.43,0.063]
[1744818588074,131.26284828,128.44,128.43,0.063]
[1744818588264,18.64964886,128.43,128.42,0.063]
[1744818588454,40.43495018,128.43,128.42,0.063]
[1744818589066,123.33495018,128.43,128.42,0.063]
[1744818589866,134.92289753,128.43,128.42,0.063]
[1744818590061,135.0650591,128.43,128.42,1e-08]
[1744818590268,141.26481918,128.43,128.42,1e-08]
[1744818591567,135.0650591,128.43,128.42,1e-08]
[1744818593280,52.1650591,128.43,128.42,1e-08]
[1744818595683,26.0,128.4,128.39,0.063]
[1744818595870,47.78530132,128.4,128.39,0.063]
[1744818596177,88.36241307,128.4,128.39,0.063]
[1744818596974,96.00841349,128.4,128.39,0.063]
[1744818597180,55.57346331,128.4,128.39,0.063]
[1744818599991,47.78530132,128.4,128.39,0.063]
[1744818600285,21.78530132,128.41,128.39,0.063]
[1744818600483,43.68885018,128.46,128.39,24.85240132]
[1744818600484,21.78530132,128.43,128.39,24.85240132]
[1744818600685,29.56982568,128.46,128.42,21.78530132]
[1744818600891,26.0,128.44,128.43,13.36]
[1744818601892,21.78530132,128.46,128.43,13.36]
[1744818602068,26.0,128.44,128.43,13.36]
[1744818603090,29.57103785,128.44,128.4,28.36330132]
[1744818603277,29.56951499,128.47,128.42,21.78530132]
[1744818603477,7.78421367,128.47,128.44,21.78530132]
[1744818603678,33.78421367,128.47,128.44,21.78530132]
[1744818603887,33.78421367,128.47,128.43,21.78530132]
[1744818604382,55.56951499,128.47,128.43,21.78530132]
[1744818604570,33.78421367,128.47,128.43,21.78530132]
[1744818604764,7.78302121,128.49,128.44,21.78530132]
[1744818604969,21.78530132,128.48,128.43,21.78530132]
[1744818605177,47.78530132,128.46,128.44,13.36]
[1744818605779,26.0,128.46,128.44,13.36]
[1744818605972,26.0,128.48,128.44,35.14530132]
[1744818606281,21.78530132,128.47,128.45,13.36]
[1744818606482,55.56982568,128.46,128.45,13.36]
[1744818606675,55.56982568,128.46,128.4,14.36585907]
[1744818606876,55.56982568,128.46,128.41,35.14530132]
[1744818607078,55.56982568,128.46,128.42,21.78530132]
[1744818607586,26.0,128.46,128.43,21.78530132]
[1744818607904,21.78530132,128.45,128.41,13.36]
[1744818608275,21.78530132,128.45,128.41,35.14530132]
[1744818608598,55.57019503,128.46,128.41,42.93260818]
[1744818608985,55.57019503,128.46,128.41,21.14730686]
[1744818609187,21.78530132,128.45,128.41,35.14530132]
[1744818610680,29.57046571,128.45,128.41,42.93285453]
[1744818610991,21.81530132,128.5,128.44,21.78530132]
[1744818611178,0.03,128.5,128.46,21.78530132]
[1744818611380,0.03,128.5,128.47,13.36]
[1744818611892,21.78530132,128.49,128.47,13.36]
[1744818612090,7.78331257,128.48,128.47,13.36]
[1744818613593,55.56824415,128.49,128.47,13.36]
[1744818614493,33.78294283,128.49,128.47,13.36]
[1744818614793,0.03,128.5,128.47,42.92877677]
[1744818614977,0.03,128.5,128.47,35.14530132]
[1744818615295,7.81232813,128.5,128.47,13.36]
[1744818616597,29.59762945,128.5,128.47,13.36]
[1744818616800,21.78530132,128.49,128.45,6.5553]
[1744818617000,21.78530132,128.49,128.46,13.36]
[1744818617182,26.03,128.5,128.47,21.78530132]
[1744818617381,26.03,128.5,128.49,21.78530132]
[1744818617382,0.03,128.5,128.49,21.78530132]
[1744818617584,0.03,128.5,128.48,21.78530132]
[1744818618799,0.03,128.5,128.49,21.78530132]
[1744818619000,0.03,128.5,128.49,29.56800814]
[1744818619297,0.03,128.5,128.49,51.57501857]
[1744818619596,0.03,128.5,128.49,63.87017994]
[1744818619801,28.62442446,128.55,128.51,0.14216157]
[1744818620006,28.62442446,128.55,128.52,13.36]
[1744818620502,29.56407592,128.56,128.52,35.14530132]
[1744818620802,26.0,128.55,128.52,35.14530132]
[1744818622484,26.0,128.55,128.52,13.36]
[1744818622880,26.0,128.55,128.52,42.92608539]
[1744818623099,33.80802678,128.57,128.54,21.78530132]
[1744818623412,33.80802678,128.57,128.52,21.14078407]
[1744818623413,26.03,128.57,128.56,21.78530132]
[1744818623890,0.03,128.57,128.56,21.78530132]
[1744818624097,0.03,128.57,128.56,25.00136289]
[1744818625998,0.03,128.57,128.56,51.42948094]
[1744818626494,0.03,128.59,128.57,18.79181043]
[1744818626688,0.03,128.59,128.58,53.79495018]
[1744818627198,0.03,128.59,128.58,75.72241307]
[1744818627803,0.03,128.59,128.58,83.49967236]
[1744818628480,0.03,128.59,128.58,13.50216157]
[1744818628685,0.03,128.59,128.58,13.36]
[1744818629202,0.03,128.59,128.56,24.85920132]
[1744818629386,0.03,128.59,128.57,13.36]
[1744818630102,21.81530132,128.59,128.57,13.36]
[1744818631401,0.03,128.59,128.57,13.36]
[1744818631700,26.0,128.55,128.52,13.32]
[1744818632002,26.0,128.57,128.54,21.78530132]
[1744818632184,33.77791683,128.57,128.54,21.78530132]
[1744818632584,7.77791683,128.57,128.54,21.78530132]
[1744818632803,29.56321815,128.57,128.53,21.92746289]
[1744818632978,21.78530132,128.55,128.52,13.32]
[1744818634114,29.56498079,128.54,128.52,13.32]
[1744818634485,21.78530132,128.53,128.48,6.4905]
[1744818634705,21.78530132,128.53,128.49,13.32]
[1744818635026,7.77934396,128.55,128.51,21.78530132]
[1744818635887,29.56464528,128.55,128.51,21.78530132]
[1744818636508,28.56464528,128.55,128.51,21.78530132]
[1744818636903,28.56464528,128.55,128.5,21.92746289]
[1744818637103,28.56464528,128.55,128.5,21.78530132]
[1744818637311,28.56464528,128.55,128.51,21.78530132]
[1744818637806,6.77934396,128.55,128.52,21.78530132]
[1744818638017,7.77876704,128.56,128.54,21.78530132]
[1744818638195,7.77876704,128.56,128.55,13.32]
[1744818639286,21.78530132,128.58,128.55,13.32]
[1744818639598,29.59226273,128.59,128.55,13.32]
[1744818639986,0.03,128.59,128.56,21.78530132]
[1744818640402,7.80665621,128.59,128.55,35.10530132]
[1744818641105,21.78530132,128.58,128.55,13.32]
[1744818641505,29.56278815,128.58,128.55,13.32]
[1744818642412,21.78530132,128.57,128.55,13.32]
[1744818642798,7.77748683,128.58,128.55,13.32]
[1744818643022,29.59225195,128.59,128.55,13.32]
[1744818644000,0.03,128.59,128.55,13.32]
[1744818644293,21.81530132,128.59,128.55,13.32]
[1744818645311,7.77725929,128.58,128.55,13.32]
[1744818646603,29.56256061,128.58,128.55,13.32]
[1744818647415,21.78530132,128.57,128.55,13.32]
[1744818647711,21.78530132,128.56,128.55,13.32]
[1744818647914,26.03,128.59,128.55,42.8843624]
[1744818647915,0.03,128.59,128.55,42.8843624]
[1744818648098,0.03,128.59,128.56,21.78530132]
[1744818650216,0.03,128.59,128.56,29.56373914]
[1744818650616,0.03,128.59,128.56,21.78530132]
[1744818652805,0.03,128.59,128.55,21.2409409]
[1744818652806,21.81530132,128.59,128.55,13.46216157]
[1744818653002,21.78530132,128.58,128.55,13.32]
[1744818653922,0.03,128.59,128.57,21.78530132]
[1744818655217,0.03,128.59,128.56,29.70586593]
[1744818655917,0.03,128.59,128.58,21.92746289]
[1744818656424,0.03,128.59,128.58,0.14216157]
[1744818657619,0.03,128.59,128.56,29.56356235]
[1744818657806,0.03,128.59,128.57,0.14216157]
[1744818658005,0.03,128.59,128.57,21.92746289]
[1744818658818,0.03,128.59,128.58,21.92746289]
[1744818659023,0.03,128.59,128.58,62.36241307]
[1744818659221,0.03,128.59,128.58,68.09479017]
[1744818659730,0.03,128.59,128.58,70.95971704]
[1744818660620,0.03,128.59,128.58,78.73697633]
[1744818661895,0.03,128.65,128.58,78.73697633]
[1744818662126,0.03,128.65,128.64,21.78530132]
[1744818662322,0.03,128.65,128.64,35.04530132]
[1744818662827,0.03,128.65,128.64,35.18746289]
[1744818663630,0.03,128.65,128.64,13.26]
[1744818663926,29.58832891,128.65,128.64,13.26]
[1744818664223,55.58832891,128.65,128.64,13.26]
[1744818664422,7.80302759,128.65,128.64,13.26]
[1744818665307,29.58832891,128.65,128.64,13.26]
[1744818668210,0.03,128.65,128.64,13.26]
[1744818668534,0.03,128.65,128.64,35.18746289]
[1744818668904,0.03,128.65,128.64,0.14216157]
[1744818669212,21.81530132,128.65,128.64,13.26]
[1744818670428,29.58832891,128.65,128.64,13.26]
[1744818671013,0.03,128.65,128.64,13.26]
[1744818671213,0.03,128.65,128.64,35.04530132]
[1744818671413,0.03,128.65,128.64,13.26]
[1744818673230,21.81530132,128.65,128.64,13.26]
[1744818673434,0.03,128.65,128.64,13.26]
[1744818675511,0.03,128.65,128.64,35.04530132]
[1744818675711,0.03,128.65,128.64,13.26]
[1744818679341,21.81530132,128.65,128.64,13.26]
[1744818679639,0.03,128.65,128.64,13.26]
[1744818680012,21.81530132,128.65,128.64,13.26]
[1744818680221,0.03,128.65,128.64,13.26]
[1744818687529,0.03,128.65,128.64,39.82544227]
[1744818687722,0.03,128.65,128.64,86.53954491]
[1744818687919,0.03,128.65,128.64,64.75424359]
[1744818688142,0.03,128.65,128.64,73.33437496]
[1744818690746,0.03,128.65,128.64,8.58013137]
[1744818690954,21.81530132,128.65,128.64,21.80013137]
[1744818691330,21.81530132,128.65,128.64,16.07987813]
[1744818691544,21.81530132,128.65,128.64,13.22]
[1744818691748,0.03,128.65,128.64,13.22]
[1744818692251,21.81530132,128.65,128.64,13.22]
[1744818692830,29.58832891,128.65,128.64,13.22]
[1744818696245,21.81530132,128.65,128.64,13.22]
[1744818696446,0.03,128.65,128.64,13.22]
[1744818698642,21.81530132,128.65,128.64,13.22]
[1744818699041,0.03,128.65,128.64,13.22]
[1744818699460,21.81530132,128.65,128.64,13.22]
[1744818699660,21.81530132,128.65,128.61,13.22]
[1744818699846,21.78530132,128.63,128.61,13.22]
[1744818700464,21.81530132,128.65,128.61,20.9953697]
[1744818701067,21.81530132,128.65,128.61,42.78067102]
[1744818701266,0.03,128.65,128.61,42.78067102]
[1744818701470,0.03,128.65,128.62,2.87261468]
[1744818701846,7.80310212,128.65,128.63,13.22]
[1744818702165,0.03,128.65,128.63,18.96545208]
[1744818703159,0.03,128.65,128.64,68.10786515]
[1744818703363,0.03,128.65,128.64,71.28956515]
[1744818703561,0.03,128.65,128.64,74.15937097]
[1744818703957,0.03,128.68,128.65,18.79181043]
[1744818704272,0.03,128.68,128.67,66.57711175]
[1744818704442,0.03,128.71,128.7,70.13242084]
[1744818704767,0.03,128.71,128.7,328.84942084]
[1744818705270,0.03,128.71,128.7,331.71922666]
[1744818705450,0.03,128.71,128.7,361.59667458]
[1744818705652,1e-08,128.71,128.7,367.34212666]
[1744818706053,0.03,128.73,128.71,18.79181043]
[1744818706274,0.03,128.73,128.72,40.57711175]
[1744818706459,0.03,128.73,128.72,48.34591224]
[1744818706865,0.03,128.73,128.72,0.14216157]
[1744818707047,0.03,128.73,128.72,8.75741947]
[1744818707249,0.03,128.73,128.72,38.31152128]
[1744818707468,0.03,128.73,128.72,8.6152579]
[1744818708057,0.03,128.73,128.72,2.86980582]
[1744818708271,0.03,128.73,128.71,0.14216157]
[1744818708459,0.03,128.73,128.7,255.72]
[1744818709473,21.81530132,128.73,128.7,255.72]
[1744818711056,0.03,128.73,128.71,21.92746289]
[1744818711251,0.03,128.73,128.71,0.14216157]
[1744818711469,21.81530132,128.73,128.7,255.72]
[1744818711660,0.03,128.73,128.7,285.27530319]
[1744818711863,0.03,128.73,128.7,277.50530132]
[1744818712084,0.03,128.73,128.71,21.92746289]
[1744818712774,0.03,128.73,128.71,0.14216157]
[1744818712978,0.03,128.73,128.71,29.69678753]
[1744818713180,0.03,128.73,128.71,21.92746289]
[1744818713355,0.03,128.73,128.71,0.14216157]
[1744818713876,0.03,128.73,128.7,255.72]
[1744818714078,21.81530132,128.73,128.7,255.72]
[1744818714274,21.78530132,128.71,128.7,255.72]
[1744818714760,29.5547054,128.71,128.7,255.72]
[1744818719689,7.76907498,128.72,128.7,255.72]
[1744818719870,55.58377549,128.73,128.7,255.72]
[1744818720071,33.79847417,128.73,128.7,255.72]
[1744818720996,0.03,128.73,128.7,285.27529262]
[1744818721889,0.03,128.73,128.7,277.50530132]
[1744818722191,21.81530132,128.73,128.7,255.72]
[1744818722898,0.03,128.73,128.7,277.50530132]
[1744818723191,0.03,128.73,128.7,285.27529868]
[1744818723793,0.03,128.73,128.7,277.50530132]
[1744818724288,21.78530132,128.71,128.7,242.5]
[1744818724792,21.78530132,128.71,128.68,13.18]
[1744818724962,29.55591286,128.69,128.68,13.18]
[1744818725801,48.98244172,128.69,128.64,0.063]
[1744818726097,21.78530132,128.66,128.65,13.18]
[1744818726274,21.78530132,128.68,128.65,13.18]
[1744818727101,29.55687641,128.68,128.65,13.18]
[1744818727279,29.55618376,128.69,128.65,13.18]
[1744818727482,26.0,128.7,128.65,13.18]
[1744818727483,47.78530132,128.7,128.65,42.73825086]
[1744818727794,47.78530132,128.7,128.66,0.14216157]
[1744818727795,55.55557359,128.7,128.66,0.14216157]
[1744818727969,21.78530132,128.69,128.65,13.18]
[1744818728570,21.78530132,128.68,128.65,13.18]
[1744818728984,21.78530132,128.68,128.64,0.063]
[1744818729185,29.55692526,128.68,128.65,13.18]
[1744818730282,7.77162394,128.68,128.65,13.18]
[1744818730477,47.78530132,128.7,128.65,42.73830549]
[1744818730676,55.55551725,128.7,128.65,34.96530132]
[1744818730875,21.78530132,128.69,128.65,42.73822971]
[1744818731075,55.55551725,128.7,128.65,42.73822971]
[1744818731273,21.78530132,128.67,128.65,13.18]
[1744818731483,21.78530132,128.68,128.65,13.18]
[1744818731977,21.78530132,128.66,128.65,13.18]
[1744818733194,29.55772476,128.66,128.65,13.18]
[1744818733773,29.55772476,128.66,128.64,0.063]
[1744818733991,21.78530132,128.65,128.64,0.063]
[1744818734290,50.88180132,128.65,128.64,0.063]
[1744818734472,72.66710264,128.65,128.64,0.063]
[1744818734793,26.0,128.62,128.59,0.063]
[1744818734986,21.78530132,128.6,128.59,0.063]
[1744818735294,34.84970381,128.6,128.59,0.063]
[1744818736195,42.62514895,128.61,128.59,0.063]
[1744818736699,34.84970381,128.61,128.59,0.063]
[1744818737088,60.84970381,128.62,128.59,0.063]
[1744818737297,34.84970381,128.61,128.59,0.063]
[1744818737473,34.84970381,128.6,128.59,0.063]
[1744818739501,7.77554888,128.61,128.59,0.063]
[1744818739805,34.84970381,128.6,128.59,0.063]
[1744818741178,34.84970381,128.61,128.59,0.063]
[1744818741379,42.62523098,128.61,128.59,0.063]
[1744818741580,34.84970381,128.6,128.59,0.063]
[1744818742378,34.84970381,128.61,128.59,0.063]
[1744818742579,7.77384742,128.64,128.59,34.91270381]
[1744818742894,34.84970381,128.64,128.59,34.91270381]
[1744818743097,34.84970381,128.63,128.59,0.063]
[1744818743291,34.84970381,128.62,128.59,0.063]
[1744818743806,34.84970381,128.6,128.59,0.063]
[1744818745695,42.62575357,128.6,128.59,0.063]
[1744818746595,34.84970381,128.6,128.59,0.063]
[1744818746805,68.62543907,128.61,128.59,0.063]
[1744818747408,60.84970381,128.63,128.59,0.063]
[1744818747706,26.0,128.63,128.6,42.62569586]
[1744818748084,25.75533395,128.68,128.6,42.62569586]
[1744818748085,3.2333,128.68,128.62,34.84970381]
[1744818748283,7.77150819,128.68,128.65,34.84970381]
[1744818748710,33.77150819,128.68,128.64,34.84970381]
[1744818749005,68.621212,128.68,128.64,34.84970381]
[1744818749510,33.77150819,128.68,128.64,34.84970381]
[1744818749809,33.77150819,128.68,128.63,20.95372412]
[1744818749810,34.84970381,128.66,128.63,13.18]
[1744818750206,34.84970381,128.64,128.63,13.18]
[1744818750511,60.84970381,128.65,128.63,13.18]
[1744818751308,34.84970381,128.64,128.63,13.18]
[1744818751487,42.62333565,128.64,128.63,13.18]
[1744818751688,68.6230301,128.65,128.63,13.18]
[1744818751889,60.84970381,128.65,128.63,13.18]
[1744818752087,34.84970381,128.66,128.63,13.18]
[1744818752398,42.62031535,128.69,128.65,34.84970381]
[1744818752991,7.77061154,128.69,128.65,34.84970381]
[1744818753190,0.03,128.7,128.67,34.84970381]
[1744818753380,0.03,128.7,128.68,13.14]
[1744818753588,0.03,128.7,128.68,34.84970381]
[1744818753783,0.03,128.7,128.68,13.14]
[1744818756021,34.84970381,128.69,128.68,13.14]
[1744818756224,0.03,128.7,128.68,13.14]
[1744818756688,34.87970381,128.7,128.68,13.14]
[1744818756888,34.84970381,128.69,128.68,13.14]
[1744818757995,42.62031535,128.69,128.68,13.14]
[1744818758399,7.80019911,128.7,128.68,13.14]
[1744818758612,42.64990292,128.7,128.68,13.14]
[1744818760315,0.03,128.7,128.68,13.14]
[1744818761013,7.80007716,128.7,128.68,13.14]
[1744818761840,0.03,128.7,128.68,13.14]
[1744818761994,0.03,128.7,128.68,47.98970381]
[1744818762195,0.03,128.7,128.69,34.84970381]
[1744818762495,0.03,128.7,128.69,34.99186538]
[1744818763915,0.03,128.7,128.69,68.03482578]
[1744818764227,0.03,128.7,128.68,47.98970381]
[1744818764403,0.03,128.7,128.68,13.14]
[1744818764904,34.87970381,128.7,128.68,13.14]
[1744818765296,0.03,128.7,128.68,13.14]
[1744818765496,0.03,128.7,128.68,20.91117506]
[1744818765800,0.03,128.7,128.68,13.14]
[1744818766429,0.03,128.7,128.68,55.76069823]
[1744818766600,0.03,128.7,128.68,13.14]
[1744818766800,0.03,128.7,128.68,20.91121471]
[1744818767007,0.03,128.7,128.68,13.14]
[1744818767698,34.87970381,128.7,128.68,13.14]
[1744818767901,34.84970381,128.69,128.68,13.14]
[1744818769403,34.87970381,128.7,128.68,13.14]
[1744818770005,42.65014582,128.7,128.68,13.14]
[1744818771318,0.03,128.7,128.68,13.14]
[1744818771516,34.87970381,128.7,128.68,13.14]
[1744818772222,0.03,128.7,128.68,13.14]
[1744818772805,0.03,128.7,128.69,34.84970381]
[1744818774332,0.03,128.7,128.69,61.41212578]
[1744818775610,0.03,128.7,128.69,64.52162578]
[1744818776130,0.03,128.7,128.69,45.87197692]
[1744818777240,0.03,128.7,128.69,45.72981535]
[1744818777440,0.03,128.7,128.69,34.84970381]
[1744818777622,0.03,128.7,128.68,13.14]
[1744818777928,0.03,128.7,128.68,55.76086959]
[1744818778130,0.03,128.7,128.69,34.99186538]
[1744818778326,0.03,128.7,128.68,55.76086959]
[1744818778630,34.87970381,128.7,128.68,13.14]
[1744818778806,34.87970381,128.7,128.69,34.84970381]
[1744818778807,0.03,128.7,128.69,34.84970381]
[1744818779012,0.03,128.7,128.68,20.9109409]
[1744818779211,0.03,128.7,128.68,55.76064471]
[1744818779511,0.03,128.7,128.69,34.84970381]
[1744818779721,0.03,128.7,128.68,55.76064471]
[1744818779913,0.03,128.7,128.68,20.9109409]
[1744818780452,0.03,128.7,128.68,13.14]
[1744818780735,0.03,128.7,128.68,20.91115947]
[1744818781036,0.03,128.7,128.68,55.76086328]
[1744818781336,0.03,128.7,128.68,55.76083075]
[1744818781835,0.03,128.7,128.69,34.84970381]
[1744818782137,0.03,128.7,128.69,53.64151424]
[1744818782647,0.03,128.73,128.72,0.14216157]
[1744818782837,0.03,128.73,128.71,34.84970381]
[1744818783139,0.03,128.73,128.7,41.12480381]
[1744818783438,0.03,128.73,128.71,34.84970381]
[1744818784337,0.03,128.73,128.7,42.61930868]
[1744818784909,0.03,128.73,128.7,7.76960487]
[1744818785158,0.03,128.73,128.7,42.61930868]
[1744818785918,0.03,128.73,128.69,42.76216321]
[1744818787133,0.03,128.73,128.69,29.64242974]
[1744818787534,0.03,128.73,128.7,21.72997034]
[1744818788313,0.03,128.73,128.72,21.87213191]
[1744818789807,0.03,128.73,128.72,43.52368077]
[1744818790221,0.03,128.73,128.72,56.98991551]
[1744818790714,0.03,128.73,128.72,59.8408879]
[1744818791709,0.03,128.73,128.72,65.9459879]
[1744818792342,0.03,128.73,128.72,308.3059879]
[1744818794138,0.03,128.74,128.73,18.79181043]
[1744818794441,0.03,128.74,128.73,79.60178077]
[1744818794736,0.03,128.74,128.73,85.29921502]
[1744818794927,0.03,128.74,128.73,88.15018741]
[1744818795627,0.03,128.74,128.73,95.91838441]
[1744818796838,0.03,128.74,128.73,87.36997777]
[1744818799438,0.03,128.74,128.73,69.92973027]
[1744818802348,0.03,128.74,128.73,69.7875687]
[1744818807731,0.03,128.76,128.73,89.2080612]
[1744818807931,0.03,128.76,128.75,43.45994068]
[1744818808133,0.03,128.76,128.75,46.31320962]
[1744818808330,0.03,128.78,128.76,24.88504886]
[1744818808555,0.03,128.79,128.78,18.64964886]
[1744818808857,0.03,128.79,128.78,56.31288814]
[1744818809062,0.03,128.79,128.78,62.0193717]
[1744818810064,0.03,128.79,128.78,21.6397525]
[1744818810443,0.03,128.79,128.78,18.78648356]